Cogmind - Beta 11.1 @@@ ROGUE MODE // 2022.08.20 @ 21:47:18 Player: maxwell Result: Destroyed by X-62 Marksman with Pulse Rifle Performance ------------- Evolutions (3) 1500 Regions Visited (15) 3000 Robots Destroyed (231) 1155 Value Destroyed (8542) 8542 Prototype IDs (19) 380 Alien Tech Used (1) 200 Bonus (3073) 3073 TOTAL SCORE: 17850 Bonus ------- High Alert Combat Kills 759 Follower Combat Kills 119 Entered Garrisons 600 Used RIF Installer 1500 Met Data Miner 300 Friendly Fire -205 Cogmind --------- Core Integrity 0/700 Matter 136/300 Energy 0/290 System Corruption 6% Temperature Cool (9) Movement Core (2350) Ox46 Location -6/Proximity Caves Parts ------- > --- POWER (2) -------- Improved Deuterium Engine > --- PROPULSION (4) --- (None) > --- UTILITY (5) ------ High-capacity Storage Unit Huge Storage Unit Advanced Targeting Computer Improved Trap Extractor (6/6 Dirty Bomb) > --- WEAPON (3) ------- Dirty Datajack Molecular Deconstructor > --- INVENTORY (25) --- Coolant Injector High-capacity Matter Pod (200) Experimental Sensor Array Dynamic Insulation System Lightning Gun Arc Thrower Arc Thrower Gatling Laser Improved EM Pulse Cannon Heavy Particle Cannon Missile Launcher Heavy Missile Launcher Dirty Datajack (20) Remote Datajack Powered Hammer Signal Generator Peak State ------------ > --- POWER ------------ Improved Deuterium Engine Heavy Deuterium Engine > --- PROPULSION ------- Armored Huge Wheel Armored Huge Wheel > --- UTILITY ---------- Coolant Injector Huge Storage Unit Advanced Targeting Computer Improved Light Armor Plating Sensor Drone Bay > --- WEAPON ----------- Gatling Laser Gatling Laser Powered Hammer > --- INVENTORY -------- Improved Deuterium Engine Wheel Coolant Injector Coolant Injector High-capacity Storage Unit High-capacity Matter Pod Experimental Sensor Array Core Shielding Improved Medium Armor Plating Dynamic Insulation System Improved Trap Extractor Lightning Gun Arc Thrower Arc Thrower Gatling Laser Gatling Laser Gatling Laser Gatling Laser Improved EM Pulse Cannon Missile Launcher Heavy Missile Launcher Heavy Missile Launcher Remote Datajack Signal Generator [Rating: 65] Favorites ----------- Power Improved Deuterium Engine Engine Improved Deuterium Engine Power Core Light Nuclear Core Propulsion Light Treads Treads Light Treads Wheel Armored Huge Wheel Utility Advanced Targeting Computer Device Sensor Drone Bay Storage Huge Storage Unit Processor Advanced Targeting Computer Protection Medium Armor Plating Weapon Gatling Laser Energy Gun Gatling Laser Energy Cannon Advanced Beam Cannon Ballistic Gun Light Assault Rifle Ballistic Cannon Flak Cannon Launcher Missile Launcher Special Weapon Molecular Deconstructor Impact Weapon Heavy Mace Special Melee Weapon Dirty Datajack Build | -11 -10 -10 -9 -9 -8 -8 -8 -8 -7 -7 -7 -7 -7 -7 -6 ------- Run | Scr Mat Min Mat Min Mat Gar Mat Gar Fac Gar Fac Low Low Dat Pro Slots Evolved 6 | . . . 2 . 2 . . . 2 . . . . . . Power 1 | . . . . . . . . . 1 . . . . . . Propulsion 2 | . . . . . 2 . . . . . . . . . . Utility 3 | . . . 2 . . . . . 1 . . . . . . Weapon . | . . . . . . . . . . . . . . . . Parts Attached 210 | 6 8 4 17 1 7 1 34 1 . 9 75 18 18 . 11 Power 22 | 1 . . 3 . 2 . 2 . . 2 11 . 1 . . Engine 16 | 1 . . 3 . 1 . 1 . . . 9 . 1 . . Core 6 | . . . . . 1 . 1 . . 2 2 . . . . Reactor . | . . . . . . . . . . . . . . . . Propulsion 32 | 2 . . 3 . 2 . 12 . . 1 10 . 2 . . Treads 28 | 2 . . 3 . 2 . 12 . . 1 7 . 1 . . Leg . | . . . . . . . . . . . . . . . . Wheel 4 | . . . . . . . . . . . 3 . 1 . . Hover . | . . . . . . . . . . . . . . . . Flight . | . . . . . . . . . . . . . . . . Utility 74 | 1 4 4 6 1 3 1 8 1 . . 24 11 6 . 4 Device 41 | . . 3 3 1 2 . 3 . . . 14 10 3 . 2 Storage 4 | 1 1 . . . . . . . . . 1 . . . 1 Processor 6 | . . . . . . . 2 1 . . 3 . . . . Hackware . | . . . . . . . . . . . . . . . . Protection 23 | . 3 1 3 . 1 1 3 . . . 6 1 3 . 1 Artifact . | . . . . . . . . . . . . . . . . Weapon 82 | 2 4 . 5 . . . 12 . . 6 30 7 9 . 7 Energy Gun 29 | . 2 . 1 . . . 1 . . . 11 5 6 . 3 Energy Cannon 28 | . . . 4 . . . 6 . . 3 15 . . . . Ballistic Gun 4 | 2 2 . . . . . . . . . . . . . . Ballistic Cannon 3 | . . . . . . . 2 . . . 1 . . . . Launcher 11 | . . . . . . . 3 . . 3 1 1 2 . 1 Special Weapon 1 | . . . . . . . . . . . . . . . 1 Impact Weapon 5 | . . . . . . . . . . . 2 1 1 . 1 Slashing Weapon . | . . . . . . . . . . . . . . . . Piercing Weapon . | . . . . . . . . . . . . . . . . Special Melee Weapon 1 | . . . . . . . . . . . . . . . 1 Unidentified Prototypes 9 | . 1 2 2 . . . . . . . 2 . 1 . 1 Parts Lost 50 | . . . 4 . 1 1 7 . . 3 16 1 8 . 9 Power 9 | . . . 2 . . . 1 . . 1 3 . 2 . . Propulsion 14 | . . . 1 . . . 1 . . 1 7 . 3 . 1 Utility 15 | . . . 1 . 1 1 3 . . 1 2 1 1 . 4 Weapon 12 | . . . . . . . 2 . . . 4 . 2 . 4 Highest Loss Streak 8 | . . . 2 . 1 1 5 . . 2 6 1 7 . 8 To Critical Strikes . | . . . . . . . . . . . . . . . . Average Slot Usage (%) 86 | . 92 100 98 100 99 99 97 99 69 78 89 77 71 50 57 Engine 10 | . 14 14 11 11 7 9 6 9 7 2 10 15 9 7 7 Core 1 | . . . . . 1 . 2 . . 4 2 . . . . Treads 19 | . 28 28 22 22 35 36 35 36 30 30 20 . 1 7 6 Wheel 3 | . . . . . . . . . . . 4 15 4 . . Device 12 | . . . 20 22 18 18 12 18 15 13 10 8 14 14 13 Storage 8 | . 14 14 11 11 9 9 9 9 7 7 7 7 7 7 7 Processor 5 | . . . . . . . 5 9 7 7 7 7 7 7 7 Protection 7 | . 6 14 11 11 9 8 6 . . . 7 6 7 7 6 Energy Gun 7 | . 2 28 3 . . . . . . . 8 14 19 . 4 Energy Cannon 6 | . . . 17 22 18 18 15 17 . 6 5 . . . . Ballistic Gun 1 | . 25 . . . . . . . . . . . . . . Naked Turns . | . . . . . . . . . . . . . . . . Heaviest Build 140 | 12 58 58 72 77 77 72 74 74 60 78 131 140 134 106 118 Greatest Support 83 | 40 40 40 43 43 83 83 83 80 80 80 80 56 56 20 20 Greatest Overweight (x) 39 | . 1 1 1 1 . . 1 . . 1 10 2 39 5 5 Average Overweight (x) 1 | . . 1 1 1 . . . . . . 1 1 5 5 5 Largest Inventory Capacity 25 | 8 20 20 20 20 20 20 20 20 20 20 25 25 25 25 25 Average Capacity 22 | 6 19 20 20 20 20 20 20 20 20 20 24 25 25 25 25 Most Carried 25 | 1 15 18 20 19 20 19 20 20 20 20 25 25 25 24 25 Average Carried 19 | . 5 15 18 18 18 18 19 18 20 17 22 24 21 23 23 Final Capacity 25 | 8 20 20 20 20 20 20 20 20 20 20 25 25 25 25 25 Final Carried 25 | 1 13 18 18 19 19 18 18 20 20 20 24 25 21 24 16 Class Distribution -------------------- 60% | Mutant 29% | Scavenger-Mutant 9% | Gunner Dominant Class ---------------- Mutant | -10/Materials Mutant | -10/Mines Scavenger-Mutant | -9/Materials Mutant | -9/Mines Scavenger-Mutant | -8/Materials Scavenger-Mutant | -8/Garrison Mutant | -8/Materials Mutant | -8/Garrison Mutant | -7/Factory Scavenger-Mutant | -7/Garrison Mutant | -7/Factory Mutant | -7/Lower Caves Gunner | -7/Lower Caves Mutant | -7/Data Miner Mutant | -6/Proximity Caves Resources | -11 -10 -10 -9 -9 -8 -8 -8 -8 -7 -7 -7 -7 -7 -7 -6 ----------- Run | Scr Mat Min Mat Min Mat Gar Mat Gar Fac Gar Fac Low Low Dat Pro Matter Collected 3243 | 249 137 99 305 . 71 10 606 125 . 124 937 238 312 . 30 Remotely . | . . . . . . . . . . . . . . . . Salvage Created 8846 | . 163 86 1086 . 330 295 1438 328 . 240 3618 450 419 . 393 Parts 444 | . 9 8 74 . 10 12 82 19 . 13 169 22 12 . 14 Haulers Intercepted 6 | . 1 . 4 . . . . . . . 1 . . . . Recyclers Shooed 4 | . . . 3 . . . 1 . . . . . . . . Parts Field Recycled . | . . . . . . . . . . . . . . . . Retrieved Matter . | . . . . . . . . . . . . . . . . Parts Self-Destructed 48 | . . . . . . . . . . . . 22 13 . 13 Prevented . | . . . . . . . . . . . . . . . . Kills | -11 -10 -10 -9 -9 -8 -8 -8 -8 -7 -7 -7 -7 -7 -7 -6 ------- Run | Scr Mat Min Mat Min Mat Gar Mat Gar Fac Gar Fac Low Low Dat Pro Combat Hostiles Destroyed 197 | . 4 6 18 . 7 8 35 6 . 16 67 11 12 . 7 Guns 67 | . 4 6 6 . . . . . . . 38 8 3 . 2 Cannons 75 | . . . 11 . 7 7 24 6 . . 20 . . . . AOE 39 | . . . . . . . 7 . . 16 3 2 8 . 3 Classes Destroyed 21 | . 4 . 4 . . 1 5 . . 1 3 1 2 . . Worker 8 | . . . . . . . 5 . . . 3 . . . . Builder 6 | . . . 1 . . . 2 . . . 3 . . . . Tunneler 1 | . . . . . . . 1 . . . . . . . . Hauler 6 | . 1 . 4 . . . . . . . 1 . . . . Recycler 4 | . . . 2 . . . . . . . 2 . . . . Minesweeper 1 | . . . . . . . . . . . . . 1 . . Mechanic 2 | . . . . . . . . . . . 2 . . . . Operator 1 | . . . . . . . . . . . 1 . . . . Watcher 12 | . 1 . 4 . 1 . 3 . . . 3 . . . . Swarmer 45 | . 2 6 5 . 1 3 7 . . 11 5 1 4 . . Grunt 86 | . 2 . 8 . 6 4 16 5 . 4 33 4 4 . . Brawler 5 | . . . 1 . . . 1 . . . 2 . 1 . . Duelist 6 | . . . . . . . 1 . . . 3 2 . . . Researcher 1 | . . . . . . . . . . . . . 1 . . Sentry 20 | . . . 4 . . . 7 . . . 7 1 1 . . Demolisher 1 | . . . . . . . . . . . 1 . . . . Specialist 6 | . . . . . . . 2 . . . 2 . . . 2 Hunter 9 | . . . . . . 1 . 1 . . 4 1 . . 2 Programmer 16 | . . . . . . . . . . 1 10 1 2 . 2 Heavy 1 | . . . . . . . 1 . . . . . . . . Enhanced Grunt 1 | . . . . . . . . . . . . . . . 1 Mutant 1 | . . . . . . . . . . . . 1 . . . Best Kill Streak 8 | . 2 3 4 . 6 5 6 5 . 4 6 5 8 . 6 Combat Bots Only 8 | . 2 3 3 . 5 5 5 5 . 4 6 5 8 . 6 Max Kills in Single Turn 4 | . 1 1 2 . 1 1 3 1 . 4 2 2 3 . 2 Gunslinging 1 | . . . . . . . . . . . . 1 . . . Exploded 4 | . . . . . . . 2 . . 4 2 2 3 . 2 Melee . | . . . . . . . . . . . . . . . . Uniques/NPCs Destroyed . | . . . . . . . . . . . . . . . . Combat | -11 -10 -10 -9 -9 -8 -8 -8 -8 -7 -7 -7 -7 -7 -7 -6 -------- Run | Scr Mat Min Mat Min Mat Gar Mat Gar Fac Gar Fac Low Low Dat Pro Damage Taken 11559 | . 196 153 972 . 502 261 1936 182 . 535 4089 796 674 . 1263 Core 1208 | . 22 27 100 . 32 54 197 73 . 32 242 87 51 . 291 Absorbed by Shields 313 | . . . . . . . . . . . 313 . . . . Redirected to Shielding 325 | . . . . . 74 58 157 . . . . . 11 . 25 Regen/Repaired (Parts) 164 | . . . 164 . . . . . . . . . . . . Core Remaining (%) 72 | 100 . 80 . 75 . . . 35 . . . . . . . Volleys Fired 532 | . 32 13 71 . 31 20 95 8 . 14 180 25 28 . 15 Largest 3 | . 2 2 2 . 2 2 2 2 . 2 2 2 3 . 3 Hottest 240 | . 40 112 136 . 136 136 138 138 . 138 160 160 240 . 240 Shots Fired 961 | . 64 26 139 . 55 39 159 10 . 15 323 46 61 . 24 Gun 484 | . 64 26 58 . . . . . . . 228 43 51 . 14 Cannon 426 | . . . 81 . 55 39 147 10 . 3 91 . . . . Launcher 43 | . . . . . . . 12 . . 12 4 3 10 . 2 Special 8 | . . . . . . . . . . . . . . . 8 Kinetic 87 | . 64 . . . . . 12 . . . 11 . . . . Thermal 734 | . . 26 139 . 55 39 131 . . . 237 42 51 . 14 Explosive 43 | . . . . . . . 12 . . 12 4 3 10 . 2 Electromagnetic 89 | . . . . . . . 4 10 . 3 71 1 . . . Robot Hit Streak 42 | . 5 3 11 . 10 8 14 8 . 10 42 14 19 . 24 Robot Miss Streak 5 | . 4 3 4 . 4 2 3 . . 2 3 5 4 . 1 Penetration Max 1 | . . . . . . . . . . . 1 . . . . Secondary Targets 6 | . . 1 1 . . . . . . . 2 2 . . . Max Gunslinging Chain 1 | . . 1 1 . . . . . . . 1 1 . . . Shots Hit Robots 721 | . 38 13 86 . 39 25 112 8 . 10 277 40 51 . 22 Core Hits 456 | . 15 6 32 . 14 11 76 6 . 30 174 30 46 . 16 Critical Kills 4 | . 1 . . . . 1 2 . . . . . . . . Critical Parts Destroyed . | . . . . . . . . . . . . . . . . Critical Strikes 14 | . 1 1 1 . . 1 2 . . . 8 . . . . Burn 6 | . . 1 1 . . . . . . . 4 . . . . Meltdown 3 | . . . . . . 1 2 . . . . . . . . Destroy 1 | . 1 . . . . . . . . . . . . . . Blast 2 | . . . . . . . . . . . 2 . . . . Corrupt 2 | . . . . . . . . . . . 2 . . . . Melee Attacks 13 | . . . . . . . . . . . 9 1 2 . 1 Impact 13 | . . . . . . . . . . . 9 1 2 . 1 Slashing . | . . . . . . . . . . . . . . . . Piercing . | . . . . . . . . . . . . . . . . Sneak Attacks . | . . . . . . . . . . . . . . . . Combat Hostiles . | . . . . . . . . . . . . . . . . Follow-up Attacks . | . . . . . . . . . . . . . . . . Damage Inflicted 21339 | . 315 221 1883 12 875 564 3675 263 . 1381 8155 1168 2134 . 693 Guns 8794 | . 308 221 661 . . . . . . . 5443 802 977 . 382 Cannons 7353 | . . . 1201 . 869 564 2269 263 . 68 2119 . . . . Explosions 5040 | . . . . . . . 1314 . . 1313 579 366 1157 . 311 Melee . | . . . . . . . . . . . . . . . . Ramming 152 | . 7 . 21 12 6 . 92 . . . 14 . . . . Kinetic 941 | . 308 . . . . . 250 . . . 383 . . . . Thermal 13176 | . . 221 1862 . 869 564 1945 . . . 5554 802 977 . 382 Explosive 5040 | . . . . . . . 1314 . . 1313 579 366 1157 . 311 Electromagnetic 2030 | . . . . . . . 74 263 . 68 1625 . . . . Impact . | . . . . . . . . . . . . . . . . Slashing . | . . . . . . . . . . . . . . . . Piercing . | . . . . . . . . . . . . . . . . Highest Corruption 6 | . . . . . . . 1 1 . . 3 1 4 4 6 Average Corruption 2 | . . . . . . . 1 1 . . 1 1 3 4 4 Corruption Purged 5 | . . . . . . . . . . . 5 . . . . Corruption Blocked . | . . . . . . . . . . . . . . . . Effects 88 | . . . . . . . 12 5 . . 8 16 28 9 10 Message Errors 19 | . . . . . . . 3 . . . 2 4 4 4 2 Matter Fused 18 | . . . . . . . 1 1 . . 1 4 8 1 2 Heat Flow Errors 13 | . . . . . . . 2 1 . . 1 1 5 2 1 Energy Discharges 14 | . . . . . . . 2 . . . 1 3 5 2 1 Data Loss (minor) 11 | . . . . . . . 2 3 . . 2 . 1 . 3 Data Loss (major) 3 | . . . . . . . . . . . . 3 . . . Misfires 4 | . . . . . . . 1 . . . . 1 2 . . Alerts 5 | . . . . . . . 1 . . . 1 . 2 . 1 Weapon Failures 1 | . . . . . . . . . . . . . 1 . . Overload Shots 46 | . . . . . . . . . . . 46 . . . . Effects 2 | . . . . . . . . . . . 2 . . . . Heat Surge 1 | . . . . . . . . . . . 1 . . . . Short Circuit 1 | . . . . . . . . . . . 1 . . . . Overflow Damage 218 | . . . . . 22 . 90 . . 18 11 24 28 . 25 Projectiles 52 | . . . . . 22 . 19 . . . 11 . . . . Explosions 166 | . . . . . . . 71 . . 18 . 24 28 . 25 Melee . | . . . . . . . . . . . . . . . . Knockbacks 10 | . . . . . . . 8 . . . 2 . . . . Impact 1 | . . . . . . . 1 . . . . . . . . Kinetic 9 | . . . . . . . 7 . . . 2 . . . . Secondary . | . . . . . . . . . . . . . . . . Self-Inflicted Damage 279 | . . . . . . . 80 . . 74 21 . 8 . 96 Shots 10 | . . . . . . . 3 . . 3 1 . 1 . 2 Rammed 19 | . 1 . 3 1 1 . 10 . . . 3 . . . . Targets Rammed 22 | . 1 . 3 1 1 . 13 . . . 3 . . . . Kicked . | . . . . . . . . . . . . . . . . Crushed 3 | . . . . . . . 3 . . . . . . . . Highest Temperature 422 | . 36 420 396 . 353 247 387 81 . 69 422 397 198 189 188 Average Temperature 112 | . 15 199 113 . 131 98 108 30 . 36 110 114 98 88 107 Received Heat Transfer 2888 | . 87 . 342 . 243 72 576 81 . 153 1001 135 153 . 45 Effects 19 | . . 2 5 . 2 . 4 . . . 5 1 . . . Shutdowns 4 | . . . 1 . 1 . 2 . . . . . . . . Energy Bleed 5 | . . . 2 . . . . . . . 2 1 . . . Interference 7 | . . 2 . . 1 . 2 . . . 2 . . . . Matter Decay 2 | . . . 2 . . . . . . . . . . . . Short Circuit 1 | . . . . . . . . . . . 1 . . . . Siege Activations . | . . . . . . . . . . . . . . . . Robots Corrupted 4 | . . . . . . . . . . . 4 . . . . Combat Hostiles 4 | . . . . . . . . . . . 4 . . . . Parts Fried 12 | . . . . . . . . . . . 12 . . . . Impact Corruptions . | . . . . . . . . . . . . . . . . Robots Melted 10 | . . . 1 . . 1 4 . . . 2 1 1 . . Combat Hostiles 10 | . . . 1 . . 1 4 . . . 2 1 1 . . Parts Melted 65 | . . 1 6 . 3 6 12 . . . 27 4 6 . . Heat Transferred 25142 | . . 555 3663 . 1517 925 3330 . . . 10377 1750 2250 . 775 Parts Sabotaged . | . . . . . . . . . . . . . . . . Parts Stolen . | . . . . . . . . . . . . . . . . Parts Stripped . | . . . . . . . . . . . . . . . . Power Chain Reactions . | . . . . . . . . . . . . . . . . Missiles Intercepted . | . . . . . . . . . . . . . . . . Alert | -11 -10 -10 -9 -9 -8 -8 -8 -8 -7 -7 -7 -7 -7 -7 -6 ------- Run | Scr Mat Min Mat Min Mat Gar Mat Gar Fac Gar Fac Low Low Dat Pro Peak Influence 989 | . 119 85 213 27 194 269 583 513 268 492 989 . . . . Initial 353 | . . . . 27 . 84 130 353 268 187 258 . . . . Average 280 | . 36 42 110 23 91 167 355 458 268 355 446 . . . . Maximum Alert Level 3 | . . . 1 . . 1 2 2 1 2 3 . . . . Low Security (%) 52 | 100 100 100 96 100 100 55 15 . . 15 27 . . . . Level 1 21 | . . . 3 . . 44 46 37 100 47 28 . . . . Level 2 17 | . . . . . . . 37 62 . 36 24 . . . . Level 3 7 | . . . . . . . . . . . 19 . . . . Level 4 . | . . . . . . . . . . . . . . . . Level 5 . | . . . . . . . . . . . . . . . . High Security . | . . . . . . . . . . . . . . . . Max Security . | . . . . . . . . . . . . . . . . Squads Dispatched 31 | . . . 2 . 1 . 7 . . . 21 . . . . Investigation 4 | . . . 1 . . . 1 . . . 2 . . . . Extermination 7 | . . . . . . . . . . . 7 . . . . Reinforcement 13 | . . . 1 . . . 6 . . . 6 . . . . Assault 3 | . . . . . . . . . . . 3 . . . . Garrison 4 | . . . . . 1 . . . . . 3 . . . . Intercept . | . . . . . . . . . . . . . . . . Searches Triggered . | . . . . . . . . . . . . . . . . Construction Impeded 1 | . . . . . . . . . . . 1 . . . . Haulers Reinforced . | . . . . . . . . . . . . . . . . Active Scanning Responses . | . . . . . . . . . . . . . . . . Cargo Convoy Interrupts . | . . . . . . . . . . . . . . . . Stealth | -11 -10 -10 -9 -9 -8 -8 -8 -8 -7 -7 -7 -7 -7 -7 -6 --------- Run | Scr Mat Min Mat Min Mat Gar Mat Gar Fac Gar Fac Low Low Dat Pro Distress Signals 14 | . . . 2 . 1 . 6 . . . 5 . . . . Communications Jammed . | . . . . . . . . . . . . . . . . Distress Signals . | . . . . . . . . . . . . . . . . Times Spotted 271 | . 10 6 27 . 16 8 52 6 . 15 99 11 13 . 8 Peak Tracking Total 6 | . 3 3 5 . 4 4 5 3 . 4 6 5 4 . 5 Tactical Retreats 15 | . 1 . 1 . . . 5 1 . 1 6 . . . . Traps | -11 -10 -10 -9 -9 -8 -8 -8 -8 -7 -7 -7 -7 -7 -7 -6 ------- Run | Scr Mat Min Mat Min Mat Gar Mat Gar Fac Gar Fac Low Low Dat Pro Traps Triggered 14 | . 1 . 1 . 1 . 2 . . . 9 . . . . Indirectly . | . . . . . . . . . . . . . . . . Trap Hack Attempts . | . . . . . . . . . . . . . . . . Triggered . | . . . . . . . . . . . . . . . . Disarmed . | . . . . . . . . . . . . . . . . Reprogrammed . | . . . . . . . . . . . . . . . . Reused . | . . . . . . . . . . . . . . . . Traps Extracted . | . . . . . . . . . . . . . . . . Installed . | . . . . . . . . . . . . . . . . Triggered . | . . . . . . . . . . . . . . . . Most Traps Carried 6 | . . . . . . . . . . . . . 6 6 6 Machines | -11 -10 -10 -9 -9 -8 -8 -8 -8 -7 -7 -7 -7 -7 -7 -6 ---------- Run | Scr Mat Min Mat Min Mat Gar Mat Gar Fac Gar Fac Low Low Dat Pro Machines Disabled 10 | . . 1 1 . 1 . 2 . . 1 2 1 . . 1 Max in Single Turn 1 | . . 1 1 . . . 1 . . 1 1 1 . . 1 Garrison Access 4 | . . . . . . . . . . . 4 . . . . Machines Sabotaged . | . . . . . . . . . . . . . . . . Garrisons Compromised . | . . . . . . . . . . . . . . . . Overloaded Fab Kills . | . . . . . . . . . . . . . . . . Hacking | -11 -10 -10 -9 -9 -8 -8 -8 -8 -7 -7 -7 -7 -7 -7 -6 --------- Run | Scr Mat Min Mat Min Mat Gar Mat Gar Fac Gar Fac Low Low Dat Pro Machines Accessed 43 | . 4 1 5 . 4 . 11 . 1 . 11 1 1 4 . Terminals 19 | . 4 . 3 . 3 . 8 . . . 1 . . . . Fabricators 2 | . . . . . . . . . . . 2 . . . . Repair Stations 4 | . . . 1 . . . . . . . 3 . . . . Recycling Units . | . . . . . . . . . . . . . . . . Scanalyzers 4 | . . . 1 . . . 2 . . . 1 . . . . Garrison Access 7 | . . . . . 1 . 1 . 1 . 4 . . . . Total Hacks 130 | . 13 1 23 . 16 . 24 . 1 . 19 1 1 31 . Successful 82 | . 5 1 14 . 7 . 11 . 1 . 10 1 1 31 . Failed 47 | . 7 . 9 . 9 . 13 . . . 9 . . . . Catastrophic 5 | . . . . . 1 . 4 . . . . . . . . Database Lockouts 1 | . 1 . . . . . . . . . . . . . . Manual 61 | . 13 . 9 . 15 . 20 . . . 3 . . . 1 Terminals 62 | . 13 . 11 . 15 . 20 . . . 3 . . . . Fabricators 4 | . . . . . . . . . . . 4 . . . . Repair Stations 14 | . . . 8 . . . . . . . 6 . . . . Recycling Units . | . . . . . . . . . . . . . . . . Scanalyzers 9 | . . . 4 . . . 3 . . . 2 . . . . Garrison Access 7 | . . . . . 1 . 1 . 1 . 4 . . . . Terminal Hacks 46 | . 2 1 4 . 2 . 4 . . . . 1 1 31 . Record 11 | . . . . . . . . . . . . . . 11 . Part Schematic 11 | . 1 . . . . . . . . . . . . 10 . Robot Schematic 7 | . . . . . . . . . . . . . . 7 . Robot Analysis 4 | . . . 3 . 1 . . . . . . . . . . Prototype ID Bank 3 | . . . . . . . . . . . . . . 3 . Open Door 3 | . . 1 . . . . . . . . . 1 1 . . Terminal Index 3 | . 1 . 1 . 1 . . . . . . . . . . Alert Level 1 | . . . . . . . 1 . . . . . . . . Unreport Threat 2 | . . . . . . . 2 . . . . . . . . Locate Traps 1 | . . . . . . . 1 . . . . . . . . Fabricator Hacks 4 | . . . . . . . . . . . 4 . . . . Network Status 2 | . . . . . . . . . . . 2 . . . . Load Schematic 1 | . . . . . . . . . . . 1 . . . . Build 1 | . . . . . . . . . . . 1 . . . . Repair Station Hacks 7 | . . . 6 . . . . . . . 1 . . . . Scan Component 4 | . . . 3 . . . . . . . 1 . . . . Repair 3 | . . . 3 . . . . . . . . . . . . Recycling Unit Hacks . | . . . . . . . . . . . . . . . . Scanalyzer 4 | . . . 1 . . . 2 . . . 1 . . . . Insert Component 3 | . . . 1 . . . 1 . . . 1 . . . . Analyze 1 | . . . . . . . 1 . . . . . . . . Garrison Access Hacks 7 | . . . . . 1 . 1 . 1 . 4 . . . . Unlock Access 3 | . . . . . 1 . 1 . 1 . . . . . . Seal Access 4 | . . . . . . . . . . . 4 . . . . Unauthorized Hacks 14 | . 3 . 3 . 4 . 4 . . . . . . . . Terminals 14 | . 3 . 3 . 4 . 4 . . . . . . . . Track 1 | . . . . . 1 . . . . . . . . . . Botnet 9 | . 2 . 2 . 2 . 3 . . . . . . . . Operators 4 | . 1 . 1 . 1 . 1 . . . . . . . . Fabricators . | . . . . . . . . . . . . . . . . Repair Stations . | . . . . . . . . . . . . . . . . Recycling Units . | . . . . . . . . . . . . . . . . Scanalyzers . | . . . . . . . . . . . . . . . . Garrison Access . | . . . . . . . . . . . . . . . . Data Cores Recovered 1 | . . . . . . . . . . . 1 . . . . Used . | . . . . . . . . . . . . . . . . Hacking Detections 28 | . 4 . 4 . 3 . 11 . . . 6 . . . . Full Trace Events 1 | . . . . . . . . . . . 1 . . . . Feedback Events . | . . . . . . . . . . . . . . . . Feedback Blocked . | . . . . . . . . . . . . . . . . Robot Schematics Acquired 7 | . . . . . . . . . . . . . . 7 . Robots Built . | . . . . . . . . . . . . . . . . Authchips . | . . . . . . . . . . . . . . . . Time . | . . . . . . . . . . . . . . . . Total Robot Build Rating . | . . . . . . . . . . . . . . . . Part Schematics Acquired 12 | . 1 . . . . . 1 . . . . . . 10 . Parts Built 1 | . . . . . . . . . . . 1 . . . . Authchips . | . . . . . . . . . . . . . . . . Time 25 | . . . . . . . . . . . 25 . . . . Total Part Build Rating 1 | . . . . . . . . . . . 1 . . . . Parts Repaired 3 | . . . 3 . . . . . . . . . . . . Time 210 | . . . 210 . . . . . . . . . . . . Parts Recycled . | . . . . . . . . . . . . . . . . Recycled Matter . | . . . . . . . . . . . . . . . . Retrieved Matter . | . . . . . . . . . . . . . . . . Retrieved Components . | . . . . . . . . . . . . . . . . Parts Scanalyzed 2 | . . . 1 . . . . . . . 1 . . . . Part Schematics Acquired 1 | . . . . . . . 1 . . . . . . . . Parts Damaged . | . . . . . . . . . . . . . . . . Bothacking | -11 -10 -10 -9 -9 -8 -8 -8 -8 -7 -7 -7 -7 -7 -7 -6 ------------ Run | Scr Mat Min Mat Min Mat Gar Mat Gar Fac Gar Fac Low Low Dat Pro Used RIF Installer 3 | . . . . . . 1 . 1 . 1 . . . . . Threat Obfuscator 1 | . . . . . . . . 1 . . . . . . . Autooverride 1 | . . . . . . . . . . 1 . . . . . Robots Hacked . | . . . . . . . . . . . . . . . . Non-combat . | . . . . . . . . . . . . . . . . Combat . | . . . . . . . . . . . . . . . . Robot Hacks Applied . | . . . . . . . . . . . . . . . . Relay Couplers Released . | . . . . . . . . . . . . . . . . Fabnet Peak Effective % . | . . . . . . . . . . . . . . . . Robots Rewired 1 | . . . . . . . . . . . . 1 . . . Allies Hacked . | . . . . . . . . . . . . . . . . Hacks Repelled . | . . . . . . . . . . . . . . . . Allies | -11 -10 -10 -9 -9 -8 -8 -8 -8 -7 -7 -7 -7 -7 -7 -6 -------- Run | Scr Mat Min Mat Min Mat Gar Mat Gar Fac Gar Fac Low Low Dat Pro Total Allies 6 | . . . . 4 . . . . . . . 1 . . 1 Largest Group 4 | . . . . 4 4 . . . . . . 1 . . 1 Highest-Rated Group 96 | . . . . 71 71 . . . . . . 30 . . 96 Highest-Rated Ally 96 | . . . . 31 31 . . . . . . 30 . . 96 Total Orders 8 | . . . 3 . . . 2 . . . . . 2 . 1 STAY 1 | . . . . . . . 1 . . . . . . . . FOLLOW 3 | . . . 1 . . . 1 . . . . . 1 . . RETURN 4 | . . . 2 . . . . . . . . . 1 . 1 Ally Attacks 59 | . . . . . 54 . . . . . . 2 . . 3 Total Damage 843 | . . . . . 656 . . . . . . 78 . . 109 Kills 6 | . . . . . 6 . . . . . . . . . . Allies Corrupted 1 | . . . . . . . . . . . 1 . . . . Allies Melted . | . . . . . . . . . . . . . . . . Intel | -11 -10 -10 -9 -9 -8 -8 -8 -8 -7 -7 -7 -7 -7 -7 -6 ------- Run | Scr Mat Min Mat Min Mat Gar Mat Gar Fac Gar Fac Low Low Dat Pro Robot Analysis Total 4 | . . . 3 . 1 . . . . . . . . . . Derelict Logs Recovered 6 | . . 2 . 2 . . . . . . . 1 1 . . Drone Launches 32 | . . . 3 1 . . 1 1 . . 6 1 1 . 18 Drone Recoveries 25 | . . . 3 . . . 2 . . . 3 . 1 . 16 Exploration | -11 -10 -10 -9 -9 -8 -8 -8 -8 -7 -7 -7 -7 -7 -7 -6 ------------- Run | Scr Mat Min Mat Min Mat Gar Mat Gar Fac Gar Fac Low Low Dat Pro Turns Passed 18190 | 72 1219 823 2142 462 519 241 1669 429 50 378 5378 1468 2148 610 582 Spaces Moved 7165 | 41 459 317 686 191 259 96 752 196 30 193 2179 1026 559 93 88 Core 57 | 2 . . . . . . . . . . . . 55 . . Treads 4807 | 39 459 317 686 191 259 96 752 196 30 193 1353 . 55 93 88 Legs . | . . . . . . . . . . . . . . . . Wheels 2301 | . . . . . . . . . . . 826 1026 449 . . Hover . | . . . . . . . . . . . . . . . . Flight . | . . . . . . . . . . . . . . . . Fastest Speed 50 | 50 160 240 240 240 160 160 160 165 165 165 115 115 130 560 560 Average Speed 210 | 154 239 240 240 240 160 160 162 165 165 165 193 129 356 560 560 Slowest Speed 2000 | 160 240 240 240 240 160 160 240 165 165 243 330 130 2000 560 560 Overloaded Moves . | . . . . . . . . . . . . . . . . Propulsion Burnouts . | . . . . . . . . . . . . . . . . Robots Hopped . | . . . . . . . . . . . . . . . . Cave-ins Triggered . | . . . . . . . . . . . . . . . . Exploration Rate (%) 49 | 3 79 57 51 52 26 32 80 51 2 53 66 92 70 70 10 Regions Visited 15 Branch Regions 6 Pre-discovered Areas 2 | . . 1 . . . . . . . . . . . 1 . Known Exits Taken 7 | . . . . 1 1 . 1 . 1 . . 1 1 1 . Unknown Exits Taken 5 | 1 1 1 1 . . . . . . . 1 . . . . Scrap Searched 9 | . . 1 . 1 . . . . . . . 4 3 . . Spaces Dug 35 | . . . . . . . . . . . 7 . 28 . . Terrain Destroyed 351 | . . . . . . . 107 . . 82 53 27 71 . 11 Melee 8 | . . . . . . . . . . . 7 . 1 . . Projectile 9 | . . . . . . . . . . . 9 . . . . AOE 334 | . . . . . . . 107 . . 82 37 27 70 . 11 Terrain Rammed . | . . . . . . . . . . . . . . . . Walls Destroyed . | . . . . . . . . . . . . . . . . Machines Disabled . | . . . . . . . . . . . . . . . . Actions | -11 -10 -10 -9 -9 -8 -8 -8 -8 -7 -7 -7 -7 -7 -7 -6 --------- Run | Scr Mat Min Mat Min Mat Gar Mat Gar Fac Gar Fac Low Low Dat Pro Total 9260 | 47 527 352 1044 194 307 145 1033 292 30 233 2970 1104 649 188 145 Wait 1096 | . 5 14 235 1 3 29 95 86 . 14 434 24 36 91 29 Move 7153 | 40 458 316 685 190 259 95 752 195 30 192 2178 1025 558 92 88 Hop . | . . . . . . . . . . . . . . . . Pick Up 114 | 1 16 5 15 1 4 . 20 . . 2 39 5 4 1 1 Fast Attach 59 | 6 5 . 8 . 1 . 8 . . 3 22 4 2 . . Attach 72 | . 1 . 6 . 3 1 16 . . 3 23 2 8 . 9 Detach 20 | . 1 . 2 . . . 1 2 . 1 10 . . 3 . Swap 80 | . 2 4 3 1 3 . 10 1 . 3 30 12 9 . 2 Drop 94 | . 6 . 16 . 2 . 23 . . 1 38 5 2 1 . Fire 532 | . 32 13 71 . 31 20 95 8 . 14 180 25 28 . 15 Melee 13 | . . . . . . . . . . . 9 1 2 . 1 Ram 1 | . . . . . . . . . . . 1 . . . . Kick . | . . . . . . . . . . . . . . . . Crush 21 | . 1 . 3 1 1 . 13 . . . 2 . . . . Escape Stasis 4 | . . . . . . . . . . . 4 . . . . Rewire 1 | . . . . . . . . . . . . 1 . . . Trap . | . . . . . . . . . . . . . . . . Miscellaneous . | . . . . . . . . . . . . . . . . Route ------- -11/Scrapyard -10/Materials (discovered 4 exits: *Mat x3 / *Min) -10/Mines -9/Materials (discovered 3 exits: *Mat x2 / [*Min]) -9/Mines -8/Materials (discovered 4 exits: *Fac x2 / *Sto / Gar) -8/Garrison -8/Materials (discovered 5 exits: *Fac x2 / *Sto x2 / Gar) -8/Garrison (discovered 2 exits: *Fac x2) -7/Factory -7/Garrison (discovered 2 exits: *Fac x2) -7/Factory (discovered 2 exits: *Fac / *Low) -7/Lower Caves -7/Lower Caves (discovered 2 exits: *Fac / *Dat) -7/Data Miner -6/Proximity Caves History --------- Turn | Location | Event 7 | -11/Scrapyard | Discovered new exit (range 15) 73 | -11/Scrapyard | Entered Materials 207 | -10/Materials | Central database locked down 311 | -10/Materials | Build established: Mutant 434 | -10/Materials | Discovered new exit (range 10) 519 | -10/Materials | Discovered new exit (range 16) 1124 | -10/Materials | Discovered new exit (range 9) 1138 | -10/Materials | Discovered new exit (range 12) 1292 | -10/Materials | Entered Mines 1372 | -10/Mines | Found a damaged Exp. Sensor Array with a note attached 1376 | -10/Mines | Found Prototype Device 1474 | -10/Mines | Found a hidden stash of uninstalled traps 1503 | -10/Mines | Learned location of Storage (-8) 1510 | -10/Mines | Learned Materials emergency access door positions 1706 | -10/Mines | Found the Drone Emporium 1717 | -10/Mines | Found Prototype Device 1732 | -10/Mines | Identified Exp. Sensor Array 1734 | -10/Mines | Identified Sensor Drone Bay 1998 | -10/Mines | Received a Rocket Launcher from a helpful Derelict 2003 | -10/Mines | Discovered new exit (range 15) 2115 | -10/Mines | Entered Materials 2115 | -9/Materials | Evolved 2 slots: Utility x2 2605 | -9/Materials | Discovered new exit (range 8) 2669 | -9/Materials | Build established: Scavenger-Mutant 3160 | -9/Materials | Discovered new exit (range 11) 3653 | -9/Materials | Discovered new exit (range 7) 3762 | -9/Materials | Repaired Adv. Beam Cannon 3813 | -9/Materials | Repaired Adv. Beam Cannon 3923 | -9/Materials | Repaired Exp. Sensor Array 4257 | -9/Materials | Entered Mines 4258 | -9/Mines | Met a Derelict testing a Signal Generator 4258 | -9/Mines | Assembled infested the area 4269 | -9/Mines | Found Signal Generator 4438 | -9/Mines | Assisted by bots powering up and referring to "LRC-V3" 4518 | -9/Mines | Discovered new exit (range 8) 4537 | -9/Mines | Identified exit to Materials 4595 | -9/Mines | Learned Materials stockpile data 4719 | -9/Mines | Entered Materials 4719 | -8/Materials | Accompanied by 5 allies 4719 | -8/Materials | Evolved 2 slots: Propulsion x2 4720 | -8/Materials | Identified exit to Factory 4755 | -8/Materials | Discovered new exit (range 10) 5072 | -8/Materials | Discovered exit to Factory (range 9) 5115 | -8/Materials | Garrison activated, responded to threat 5238 | -8/Materials | Identified exit to Garrison 5238 | -8/Materials | Entered Garrison 5238 | -8/Garrison | Accompanied by 1 ally 5246 | -8/Garrison | Installed Relay Interface Framework 5292 | -8/Garrison | Triggered checkpoint 5386 | -8/Garrison | Triggered checkpoint 5457 | -8/Garrison | Discovered new exit (range 15) 5479 | -8/Garrison | Entered Materials 5479 | -8/Materials | Accompanied by 1 ally 6161 | -8/Materials | Lost 5 parts (1p1n2u1w) 6163 | -8/Materials | Found Prototype Device 6259 | -8/Materials | Discovered exit to Factory (range 12) 6419 | -8/Materials | Build established: Mutant 6540 | -8/Materials | Discovered exit to Factory (range 13) 6875 | -8/Materials | Core integrity fell below 50% 6982 | -8/Materials | Discovered new exit (range 4) 7075 | -8/Materials | Identified exit to Storage 7081 | -8/Materials | Discovered exit to Storage (range 14) 7148 | -8/Materials | Identified exit to Garrison 7148 | -8/Materials | Entered Garrison 7372 | -8/Garrison | Discovered exit to Factory (range 9) 7470 | -8/Garrison | Triggered checkpoint 7545 | -8/Garrison | Discovered exit to Factory (range 8) 7564 | -8/Garrison | Expanded RIF knowledge: Threat Obfuscation 7577 | -8/Garrison | Entered Factory 7577 | -7/Factory | Accompanied by 1 ally 7577 | -7/Factory | Evolved 2 slots: Power x1, Utility x1 7627 | -7/Factory | Identified exit to Garrison 7627 | -7/Factory | Entered Garrison 7627 | -7/Garrison | Accompanied by 1 ally 7680 | -7/Garrison | Triggered checkpoint 7782 | -7/Garrison | Discovered new exit (range 12) 7948 | -7/Garrison | Discovered new exit (range 14) 7991 | -7/Garrison | Expanded RIF knowledge: Autooverride 8005 | -7/Garrison | Entered Factory 8043 | -7/Factory | Build established: Scavenger-Mutant 8973 | -7/Factory | Fabricated Huge Storage Unit (x1) 10033 | -7/Factory | Build established: Mutant 10909 | -7/Factory | Garrison activated, responded to threat 11073 | -7/Factory | Lost 6 parts (1p2n1u2w) 11605 | -7/Factory | First assault squad dispatched 12595 | -7/Factory | Discovered new exit (range 6) 12602 | -7/Factory | Identified exit to Factory 13364 | -7/Factory | Discovered new exit (range 13) 13383 | -7/Factory | Entered Lower Caves 13583 | -7/Lower Caves | Learned 12 Factory zone layouts 13833 | -7/Lower Caves | Encountered a Warlord checkpoint 14155 | -7/Lower Caves | Discovered new exit (range 3) 14162 | -7/Lower Caves | Identified exit to Lower Caves 14451 | -7/Lower Caves | Attracted the attention of an 0b10 outpost 14469 | -7/Lower Caves | Core integrity fell below 50% 14652 | -7/Lower Caves | Attacked by a delusional Derelict stockpiling parts 14851 | -7/Lower Caves | Entered another Lower Caves area 14851 | -7/Lower Caves | Accompanied by 1 ally 14902 | -7/Lower Caves | Discovered exit to Factory (range 6) 15272 | -7/Lower Caves | Found Alien Artifact 15272 | -7/Lower Caves | Identified Core Expander 15272 | -7/Lower Caves | Installed Core Expander, added new Weapon slot 15562 | -7/Lower Caves | Lost 7 parts (2p2n1u2w) 15566 | -7/Lower Caves | Destroyed 8 combat bots 15816 | -7/Lower Caves | Build established: Gunner 16487 | -7/Lower Caves | Discovered new exit (range 17) 16872 | -7/Lower Caves | Identified exit to Data Miner 16926 | -7/Lower Caves | Learned Factory stockpile data 16999 | -7/Lower Caves | Entered Data Miner 16999 | -7/Data Miner | Accompanied by 1 ally 17000 | -7/Data Miner | Discovered new exit (range 7) 17049 | -7/Data Miner | Identified exit to Proximity Caves 17108 | -7/Data Miner | Met Data Miner 17293 | -7/Data Miner | Build established: Mutant 17417 | -7/Data Miner | Learned location of Section 7 (-2) 17417 | -7/Data Miner | Acquired the access code to Warlord's prototype stash 17484 | -7/Data Miner | Received God Mode back door access code from Data Miner 17609 | -7/Data Miner | Entered Proximity Caves 17609 | -6/Proximity Caves | Accompanied by 1 ally 17690 | -6/Proximity Caves | Acquired the password to a Derelict Tinkerer's latest research 17725 | -6/Proximity Caves | Found Prototype Special Weapon 18102 | -6/Proximity Caves | Caught by Unaware searching for contraband prototypes 18138 | -6/Proximity Caves | Core integrity fell below 20% 18139 | -6/Proximity Caves | Identified Molecular Deconstructor 18146 | -6/Proximity Caves | Caught by Unaware searching for contraband prototypes 18179 | -6/Proximity Caves | Lost 8 parts (1n3u4w) 18191 | -6/Proximity Caves | Destroyed by X-62 Marksman with Pulse Rifle Last Messages --------------- 18167_ Sensor Drone retrieved by Sensor Drone Bay. 18170_ Slug penetrates Sensor Drone. 18170_ Sensor Drone retrieved by Sensor Drone Bay. 18173_ Slug penetrates Sensor Drone. 18173_ Sensor Drone destroyed. 18179_ Slug penetrates Wall. 18180_ Entropy package melds with Earth. 18182_ Penetrated by Slug. 18184_ Sensor Drone released from Sensor Drone Bay. 18185_ Earth disintegrates. 18185_ Sensor Drone released from Sensor Drone Bay. 18185_ Entropy package works its way towards X-62 Marksman core. 18185_ Sensor Drone Bay destroyed. 18186_ >> Lost connection to Sensor Drone. 18188_ Entropy package works its way towards Sensor Drone core. 18188_ Penetrated by Slug. 18190_ Sensor Drone core destabilizing. 18191_ X-62 Marksman core entropy levels peaking. 18191_ Entropy package works its way towards X-62 Marksman core. 18191_ Penetrated by Slug. Map ----- +----------------------------------------------------+ | ??????????????????????#" ####???????????????? | | ??????????????????????## #### ##??????????????? | | ??????????????????????# ## #??????????????? | | ?????????????????###### #???????????????? | | ?????????????????# ##???????????????? | | ?????????????????# #### #####????????????????? | | ?????????????????# #??# ##???????????????????? | | ?????????????????# #### #???????????????????? | | ????????????????## # ##??????????????????? | | ???????????????## #??????????????????? | | ???????????????# ## #??????????????????? | | ???????????????# #######??????????????????? | | ???????????????# #????????????????????????? | | ???????????????# #????????????????????????? | | ?????????????### ##?????????? ???????????? | | ?????????????#;# ##???????? ???????????? | | ??????????????# ####???? ??????????? | | ??????????????# #??? ??????????? | | ??????????????## ##?? ???????????? | | ???????????????## ##? ?????????????? | | ????????????????## % # #??????????????? | | ?????????????????# ## ##?????????????? | | ?????????????????# xn # #?????????????? | | ?????????????????# %n #####?????????? | | ??????????????# ## % ;; ???????? | | ??????????????# @ ???????? | | ??????????????# ???????? | | ??????????????## ##?????????? | | ???????????????### # ###??????????? | | ?????????????????### ##????????????? | | ???????????????????# ##?????????????? | | ???????????????????# ##??????????????? | | ???????????????????## ## #???????????????? | | ????????????????????## ##?# ??????????????? | | ?????????????????????# #??? ?????????????? | | ?????????????????????## #???? ????????????? | | ??????????????????????# ###????? ????????????? | | ??????????????????????###??????? ##????????????? | | ???????????????????????????????????????????????? | | ???????????????????????????????????????????????? | | ???????????????????????????????????????????????? | | ???????????????????????????????????????????????? | | ???????????????????????????????????????????????? | | ???????????????????????????????????????????????? | | ???????????????????????????????????????????????? | | ???????????????????????????????????????????????? | | ???????????????????????????????????????????????? | | ???????????????????????????????????????????????? | | ???????????????????????????????????????????????? | | ???????????????????????????????????????????????? | +----------------------------------------------------+ Best States ------------- Heat Dissipation 51 Coolant Potential 65 Energy Generation 29 Energy Capacity 500 Matter Stores 300 Matter Capacity 300 Sight Range 16 Terrain Scan Density 10 EM Shielding 2 Armor Coverage 600 Core Shielding 20 Power Shielding 33 Propulsion Shielding 66 Utility Shielding 66 Evasion (%) 40 Targeting Accuracy 16 Core Analysis 6 Recoil Reduction 4 Trap Extractor Capacity 6 Item Schematics ----------------- Huge Storage Unit | -10/Materials | Hacked Exp. Sensor Array | -8/Materials | Scanalyzed Lgt. Regenerative Plating | -7/Data Miner | Free Biomechanical Wings | -7/Data Miner | Free Gravity Neutralizer | -7/Data Miner | Free Hvy. Treads | -7/Data Miner | Free Combat Drone Bay | -7/Data Miner | Free Adv. Trap Extractor | -7/Data Miner | Free Imp. Lightning Gun | -7/Data Miner | Free Adv. Medium Treads | -7/Data Miner | Free Hvy. Phase Cannon | -7/Data Miner | Free Hyp. Gauss Cannon | -7/Data Miner | Free Robot Schematics ------------------ O-24 Administrator | -7/Data Miner | Free S-27 Virus | -7/Data Miner | Free M-28 Smith | -7/Data Miner | Free L-41 Fighter | -7/Data Miner | Free I-47 Archangel | -7/Data Miner | Free M-22 Extractor | -7/Data Miner | Free B-48 Gladiator | -7/Data Miner | Free Fabricated ------------ Huge Storage Unit | x1 | -7/Factory Alien Tech Used ----------------- Core Expander Achievements -------------- None Challenges ------------ None Game ------ Seed BurstHoverMeganuke Manual? 0 Play Time 01:23:42 Cumulative 268.8 hours Start 2022.08.20 @ 19:45:28 End 2022.08.20 @ 21:47:18 Sessions 3 Manual Loads 0 Difficulty Rogue Special Mode None Game No. 377 Rogue 355 Adventurer 4 Explorer 18 Win Type - Total 11 Types 9/0/0/2/0/0/0/0/0 Lore% 70 Gallery% 89 Achievement% 72 Wizard Run 0 Options --------- ASCII 0 Keyboard 1 Movement Numpad Keybinds 0 Fullscreen 1 Font 18/SmallcapsGlow Map View 76x50 Tactical HUD 1 Map Filters NONE Filters NONE Steam 1 RUN: 9a72a9b1-8bf8-4856-afe6-55b8424b19e1